fUSD/lending_fUSD_20250607
["ID","MTS","AMOUNT","RATE_DAILY","PERIOD"]
[364934097,1749317438959,-2618.2481025,0.00018749,2]
[364934099,1749317438968,-251.0,0.0001877,4]
[364934101,1749317438979,-151.0,0.00018785,2]
[364934103,1749317438989,-391.886325,0.00018802,2]
[364934105,1749317438999,-2715.12328229,0.00018804,2]
[364934107,1749317439009,-1267.58820166,0.00018822,2]
[364934109,1749317439019,-151.0,0.00018827,2]
[364934111,1749317439030,-151.0,0.00018837,2]
[364934113,1749317439046,-2815.58284374,0.00018859,2]
[364934115,1749317439056,-151.0,0.0001887,2]
[364934117,1749317439066,-151.0,0.0001887,2]
[364934119,1749317439076,-151.0,0.0001887,2]
[364934121,1749317439086,-171.875355,0.0001887,2]
[364934123,1749317439096,-171.875355,0.0001887,2]
[364934125,1749317439105,-937.5142,0.00018877,2]
[364934127,1749317439116,-1267.58820166,0.00018904,2]
[364934129,1749317439126,-151.0,0.00018912,2]
[364934131,1749317439137,-2919.75940895,0.00018914,2]
[364934133,1749317439147,-302.11,0.00018939,2]
[364934135,1749317439158,-303.68,0.00018939,2]
[364934137,1749317439168,-301.49,0.00018939,2]
[364934139,1749317439178,-151.0,0.00018947,2]
[364934141,1749317439189,-301.41,0.0001895,2]
[364934144,1749317439199,-1267.58820166,0.00018959,2]
[364934146,1749317439209,-3027.79050709,0.00018969,2]
[364934148,1749317439219,-151.0,0.00018977,2]
[364934150,1749317439231,-151.0,0.00018977,2]
[364934152,1749317439241,-171.875355,0.00018977,2]
[364934154,1749317439251,-171.875355,0.00018977,2]
[364934156,1749317439261,-4732.47629677,0.00018979,2]
[364934158,1749317439271,-161.6800354,0.00019,2]
[364934160,1749317439281,-151.0,0.00019,2]
[364934162,1749317439291,-151.0,0.00019,2]
[364934164,1749317439301,-151.0,0.00019,2]
[364934166,1749317439312,-250.0,0.00019,2]
[364934168,1749317439322,-277.0,0.0001902,2]
[364934170,1749317439333,-3139.81875585,0.00019024,2]
[364934172,1749317439343,-2000.0,0.00019032,2]
[364934174,1749317439354,-500.0,0.00019032,2]
[364934176,1749317439364,-200.0,0.00019032,2]
[364934178,1749317439373,-2000.0,0.00019032,2]
[364934180,1749317439383,-2000.0,0.00019033,2]
[364934182,1749317439394,-2000.0,0.00019033,2]
[364934184,1749317439404,-500.0,0.00019033,2]
[364934186,1749317439414,-200.0,0.00019033,2]
[364934188,1749317439424,-3285.75326772,0.00019034,2]
[364934190,1749317439433,-151.0,0.00019035,2]
[364934192,1749317439443,-151.0,0.00019035,2]
[364934194,1749317439453,-171.875355,0.00019035,2]
[364934196,1749317439463,-171.875355,0.00019035,2]
[364934199,1749317439477,-1267.58820166,0.00019041,2]
[364934201,1749317439490,-3255.99204981,0.00019079,2]
[364934203,1749317439500,-3285.75326761,0.0001908,2]
[364934205,1749317439510,-4732.47629672,0.00019081,2]
[364934207,1749317439521,-151.0,0.00019089,2]
[364934209,1749317439531,-171.875355,0.00019089,2]
[364934211,1749317439541,-171.875355,0.00019089,2]
[364934212,1749317439552,-1267.58820166,0.00019123,2]
[364934213,1749317439562,-3285.75326761,0.00019125,2]
[364934214,1749317439573,-151.0,0.00019126,2]
[364934215,1749317439583,-1232.046,0.00019134,2]
[364934216,1749317439593,-187.485,0.00019134,2]
[364934217,1749317439602,-3376.46375566,0.00019134,2]
[364934218,1749317439613,-151.0,0.00019144,2]
[364934219,1749317439623,-151.0,0.00019144,2]
[364934220,1749317439634,-500.0,0.00019159,2]
[364934221,1749317439644,-500.0,0.00019159,2]
[364934222,1749317439653,-300.0,0.00019169,2]
[364934223,1749317439663,-3285.75326761,0.00019171,2]
[364934224,1749317439674,-151.0,0.00019178,2]
[364934226,1749317439684,-171.875355,0.00019178,2]
[364934228,1749317439693,-171.875355,0.00019178,2]
[364934230,1749317439703,-151.0,0.00019178,2]
[364934231,1749317439713,-1500.0,0.00019178,2]
[364934233,1749317439723,-4732.47629672,0.00019184,2]
[364934236,1749317439734,-300.0,0.00019184,2]
[364934238,1749317439743,-300.0,0.00019184,2]
[364934239,1749317439754,-459.95,0.00019185,2]
[364934241,1749317439764,-460.17,0.00019185,2]
[364934243,1749317439774,-768.45,0.00019185,2]
[364934245,1749317439784,-173.86162008,0.00019186,2]
[364934247,1749317439794,-301.0,0.00019186,2]
[364934249,1749317439804,-301.61553679,0.00019186,2]
[364934251,1749317439813,-500.0,0.00019186,2]
[364934253,1749317439823,-500.0,0.00019186,2]
[364934255,1749317439833,-3501.39291462,0.00019189,2]
[364934257,1749317439843,-1267.58820166,0.00019205,2]
[364934259,1749317439853,-251.0,0.00019208,5]
[364934261,1749317439863,-500.0,0.00019214,2]
[364934263,1749317439872,-500.0,0.00019214,2]
[364934265,1749317439882,-3285.75326761,0.00019216,2]
[364934267,1749317439892,-151.0,0.00019221,2]
[364934269,1749317439901,-195.5976,0.00019226,2]
[364934272,1749317439916,-151.0,0.00019236,2]
[364934274,1749317439926,-151.0,0.00019236,2]
[364934276,1749317439935,-500.0,0.00019241,2]
[364934278,1749317439946,-500.0,0.00019241,2]
[364934280,1749317439955,-3630.94445246,0.00019244,2]
[364934282,1749317439966,-3285.75326761,0.00019262,2]
[364934284,1749317439976,-500.0,0.00019269,2]
[364934286,1749317439986,-500.0,0.00019269,2]
[364934288,1749317439996,-151.0,0.00019276,2]
[364934290,1749317440006,-171.875355,0.00019276,2]
[364934292,1749317440016,-171.875355,0.00019276,2]
[364934294,1749317440026,-4732.47629672,0.00019286,2]
[364934296,1749317440037,-500.0,0.00019296,2]
[364934298,1749317440047,-500.0,0.00019296,2]
[364934300,1749317440057,-3765.2893972,0.00019299,2]
[364934302,1749317440068,-158.79712754,0.000193,2]
[364934305,1749317440080,-196.66935034,0.000193,2]
[364934307,1749317440090,-3285.75326761,0.00019307,2]
[364934309,1749317440099,-334.21349315,0.00019323,2]
[364934311,1749317440109,-500.0,0.00019323,2]
[364934313,1749317440119,-300.66,0.00019346,2]
[364934314,1749317440128,-300.01,0.00019346,2]
[364934317,1749317440138,-500.0,0.00019351,2]
[364934319,1749317440148,-3285.75326761,0.00019353,2]
[364934321,1749317440158,-151.0,0.00019363,2]
[364934323,1749317440168,-151.0,0.00019363,2]
[364934325,1749317440178,-158.959961,0.00019363,2]
[364934327,1749317440187,-171.875355,0.00019363,2]
[364934329,1749317440197,-171.875352,0.00019363,2]
[364934331,1749317440207,-161.8540432,0.00019373,2]
[364934333,1749317440217,-500.0,0.00019373,2]
[364934335,1749317440227,-500.0,0.00019373,2]
[364934337,1749317440236,-500.0,0.00019373,2]
[364934339,1749317440246,-500.0,0.00019373,2]
[364934341,1749317440256,-500.0,0.00019378,2]
[364934343,1749317440265,-4732.47629672,0.00019388,2]
[364934345,1749317440275,-151.0,0.00019389,2]
[364934347,1749317440285,-151.0,0.00019389,2]
[364934349,1749317440295,-160.160776,0.00019389,2]
[364934351,1749317440305,-160.160776,0.00019389,2]
[364934353,1749317440315,-151.0,0.00019389,2]
[364934355,1749317440325,-151.0,0.00019389,2]
[364934357,1749317440335,-151.0,0.00019389,2]
[364934359,1749317440344,-611.06,0.0001939,2]
[364934363,1749317440354,-611.06,0.0001939,2]
[364934366,1749317440378,-3285.75326761,0.00019399,2]
[364934369,1749317440388,-190.62695746,0.00019399,2]
[364934372,1749317440398,-180.53569963,0.00019399,2]
[364934374,1749317440408,-219.85602877,0.00019399,2]
[364934376,1749317440418,-304.69240011,0.00019399,2]
[364934379,1749317440429,-615.38886666,0.00019399,2]
[364934381,1749317440439,-300.0,0.00019399,2]
[364934383,1749317440450,-151.0,0.000194,2]
[364934385,1749317440460,-193562.27117735,0.000194,2]
[364934387,1749317440470,-151.0,0.000194,2]
[364934389,1749317440482,-151.0,0.000194,2]
[364934391,1749317440492,-151.0,0.000194,2]
[364934393,1749317440502,-151.0,0.000194,2]
[364934395,1749317440512,-151.0,0.000194,2]
[364934397,1749317440523,-151.0,0.000194,2]
[364934399,1749317440534,-151.0,0.000194,2]
[364934401,1749317440545,-151.0,0.000194,2]
[364934403,1749317440555,-151.0,0.000194,2]
[364934405,1749317440565,-151.0,0.000194,2]
[364934407,1749317440577,-151.0,0.000194,2]
[364934410,1749317440587,-151.0,0.000194,2]
[364934412,1749317440597,-388.088847,0.000194,2]
[364934414,1749317440607,-388.088847,0.000194,2]
[364934416,1749317440617,-388.088847,0.000194,2]
[364934418,1749317440628,-388.088847,0.000194,2]
[364934420,1749317440637,-151.0,0.000194,2]
[364934422,1749317440648,-151.0,0.000194,2]
[364934424,1749317440658,-259.589776,0.000194,2]
[364934426,1749317440668,-151.0,0.000194,2]
[364934428,1749317440678,-151.0,0.000194,2]
[364934430,1749317440689,-259.589776,0.000194,2]
[364934432,1749317440699,-151.0,0.000194,2]
[364934434,1749317440709,-151.0,0.000194,2]
[364934436,1749317440720,-250.360061,0.000194,2]
[364934438,1749317440731,-250.360061,0.000194,2]
[364934440,1749317440740,-151.0,0.000194,2]
[364934442,1749317440751,-151.0,0.000194,2]
[364934445,1749317440761,-223.160854,0.000194,2]
[364934447,1749317440771,-151.0,0.000194,2]
[364934449,1749317440781,-151.0,0.000194,2]
[364934451,1749317440796,-151.0,0.000194,2]
[364934453,1749317440807,-151.0,0.000194,2]
[364934455,1749317440817,-151.0,0.000194,2]
[364934457,1749317440827,-151.0,0.000194,2]
[364934459,1749317440838,-151.0,0.000194,2]
[364934461,1749317440849,-383.552512,0.000194,2]
[364934463,1749317440859,-151.0,0.000194,2]
[364934466,1749317440870,-151.0,0.000194,2]
[364934468,1749317440881,-383.552512,0.000194,2]
[364934470,1749317440891,-173.579297,0.000194,2]
[364934472,1749317440900,-173.579297,0.000194,2]
[364934474,1749317440910,-173.579297,0.000194,2]
[364934476,1749317440920,-173.579297,0.000194,2]
[364934478,1749317440930,-151.0,0.000194,2]
[364934480,1749317440940,-151.0,0.000194,2]
[364934482,1749317440949,-151.0,0.000194,2]
[364934484,1749317440960,-151.0,0.000194,2]
[364934486,1749317440971,-151.0,0.000194,2]
[364934488,1749317440981,-151.0,0.000194,2]
[364934490,1749317440991,-210.732352,0.000194,2]
[364934492,1749317441002,-210.732352,0.000194,2]
[364934494,1749317441012,-210.732352,0.000194,2]
[364934496,1749317441022,-210.732352,0.000194,2]
[364934498,1749317441032,-151.0,0.000194,2]
[364934500,1749317441042,-151.0,0.000194,2]
[364934502,1749317441052,-151.0,0.000194,2]
[364934504,1749317441062,-151.0,0.000194,2]
[364934506,1749317441071,-160.160776,0.000194,2]
[364934508,1749317441081,-160.160776,0.000194,2]
[364934510,1749317441091,-151.0,0.000194,2]
[364934512,1749317441101,-160.160776,0.000194,2]
[364934514,1749317441111,-160.160776,0.000194,2]
[364934516,1749317441123,-151.0,0.000194,2]
[364934518,1749317441133,-151.0,0.000194,2]
[364934520,1749317441143,-151.0,0.000194,2]
[364934522,1749317441153,-151.0,0.000194,2]
[364934524,1749317441163,-151.0,0.000194,2]
[364934526,1749317441173,-151.0,0.000194,2]
[364934528,1749317441183,-151.0,0.000194,2]
[364934530,1749317441194,-151.0,0.000194,2]
[364934532,1749317441203,-151.0,0.000194,2]
[364934534,1749317441214,-151.0,0.000194,2]
[364934537,1749317441228,-151.0,0.000194,2]
[364934539,1749317441239,-151.0,0.000194,2]
[364934541,1749317441248,-151.0,0.000194,2]
[364934543,1749317441258,-151.0,0.000194,2]
[364934545,1749317441268,-160.4956,0.000194,2]
[364934547,1749317441279,-151.0,0.000194,2]
[364934549,1749317441290,-151.0,0.000194,2]
[364934551,1749317441300,-151.0,0.000194,2]
[364934553,1749317441312,-151.0,0.000194,2]
[364934555,1749317441321,-863.75173,0.000194,2]
[364934557,1749317441332,-863.75173,0.000194,2]
[364934559,1749317441342,-492.624245,0.000194,2]
[364934561,1749317441352,-492.624245,0.000194,2]
[364934563,1749317441362,-156.101766,0.000194,2]
[364934565,1749317441373,-156.101766,0.000194,2]
[364934568,1749317441384,-151.0,0.000194,2]
[364934570,1749317441394,-151.0,0.000194,2]
[364934572,1749317441404,-280.227671,0.000194,2]
[364934574,1749317441414,-280.227671,0.000194,2]
[364934576,1749317441423,-151.0,0.000194,2]
[364934578,1749317441434,-151.0,0.000194,2]
[364934580,1749317441443,-185.707612,0.000194,2]
[364934582,1749317441453,-1000.0,0.000194,7]
[364934584,1749317441463,-185.707612,0.000194,2]
[364934586,1749317441474,-151.0,0.000194,2]
[364934588,1749317441488,-398.956507,0.000194,2]
[364934590,1749317441499,-398.956507,0.000194,2]
[364934592,1749317441509,-151.0,0.000194,2]
[364934594,1749317441519,-57177.92037208,0.000194,2]
[364934598,1749317441543,-180582.98073809,0.000194,2]
[364934600,1749317441553,-625.184171,0.000194,2]
[364934602,1749317441566,-625.184171,0.000194,2]
[364934604,1749317441576,-270.751954,0.000194,2]
[364934606,1749317441586,-270.751954,0.000194,2]
[364934608,1749317441596,-151.0,0.000194,2]
[364934610,1749317441606,-151.0,0.000194,2]
[364934612,1749317441616,-18148.41837105,0.000194,2]
[364934614,1749317441626,-151.0,0.000194,2]
[364934616,1749317441635,-151.0,0.000194,2]
[364934618,1749317441645,-250.0,0.000194,2]
[364934620,1749317441656,-250.0,0.000194,2]
[364934622,1749317441666,-151.0,0.000194,2]
[364934624,1749317441676,-500.0,0.00019406,2]
[364934626,1749317441686,-151.0,0.0001942,2]
[364934628,1749317441696,-151.0,0.0001942,2]
[364934630,1749317441706,-151.0,0.0001942,2]
[364934632,1749317441716,-250.360061,0.0001942,2]
[364934634,1749317441726,-250.360061,0.0001942,2]
[364934636,1749317441736,-151.0,0.0001942,2]
[364934638,1749317441746,-151.0,0.0001942,2]
[364934640,1749317441757,-151.0,0.0001942,2]
[364934642,1749317441767,-151.0,0.0001942,2]
[364934644,1749317441777,-151.0,0.0001942,2]
[364934647,1749317441789,-151.0,0.0001942,2]
[364934649,1749317441799,-151.0,0.0001942,2]
[364934651,1749317441809,-151.0,0.0001942,2]
[364934653,1749317441820,-492.624245,0.0001942,2]
[364934655,1749317441829,-492.624245,0.0001942,2]
[364934657,1749317441839,-151.0,0.00019423,2]
[364934659,1749317441849,-151.0,0.00019423,2]
[364934661,1749317441860,-151.0,0.00019423,2]
[364934663,1749317441870,-150.0,0.00019426,2]
[364934665,1749317441879,-150.0,0.00019431,2]
[364934667,1749317441889,-500.0,0.00019433,2]
[364934669,1749317441899,-151.0,0.00019433,2]
[364934671,1749317441909,-230.922095,0.00019433,2]
[364934673,1749317441919,-259.589776,0.00019433,2]
[364934675,1749317441928,-259.589776,0.00019433,2]
[364934677,1749317441938,-151.0,0.00019433,2]
[364934679,1749317441947,-151.0,0.00019433,2]
[364934681,1749317441957,-383.552512,0.00019433,2]
[364934683,1749317441968,-383.552512,0.00019433,2]
[364934685,1749317441978,-596.5,0.00019434,2]
[364934687,1749317441988,-1000.0,0.00019441,2]
[364934689,1749317441997,-160.872944,0.00019442,2]
[364934691,1749317442008,-160.872944,0.00019442,2]
[364934693,1749317442018,-167.71,0.00019442,2]
[364934695,1749317442028,-3285.75326761,0.00019444,2]
[364934697,1749317442039,-150.0,0.00019448,2]
[364934699,1749317442049,-151.0,0.00019457,2]
[364934701,1749317442059,-151.0,0.00019457,2]
[364934703,1749317442068,-151.0,0.00019457,2]
[364934705,1749317442078,-151.0,0.00019457,2]
[364934707,1749317442088,-151.0,0.0001946,2]
[364934709,1749317442098,-151.0,0.0001946,2]
[364934711,1749317442107,-151.0,0.0001946,2]
[364934713,1749317442117,-151.0,0.0001946,2]
[364934715,1749317442127,-500.0,0.0001946,2]
[364934717,1749317442136,-150.0,0.00019469,2]
[364934719,1749317442146,-150.0,0.00019476,2]
[364934721,1749317442156,-150.0,0.00019478,2]
[364934723,1749317442165,-300.82,0.00019478,2]
[364934751,1749317442429,-300.0,0.00019478,2]
[364934754,1749317442442,-150.0,0.00019478,2]
[364934756,1749317442451,-311.68,0.00019478,2]
[364934758,1749317442461,-500.0,0.00019488,2]
[364934760,1749317442471,-3285.75326761,0.0001949,2]
[364934762,1749317442484,-4732.47629672,0.00019491,2]
[364934764,1749317442494,-150.0,0.00019493,2]
[364934765,1749317442504,-150.0,0.00019493,2]
[364934767,1749317442514,-166.008992,0.000195,2]
[364934769,1749317442523,-230.33985,0.000195,2]
[364934771,1749317442532,-151.0,0.000195,2]
[364934773,1749317442542,-159.748696,0.000195,2]
[364934775,1749317442551,-151.0,0.000195,2]
[364934777,1749317442561,-210.732352,0.000195,2]
[364934779,1749317442571,-210.732352,0.000195,2]
[364934781,1749317442580,-160.160776,0.000195,2]
[364934783,1749317442590,-160.160776,0.000195,2]
[364934785,1749317442600,-151.0,0.000195,2]
[364934787,1749317442609,-151.0,0.000195,2]
[364934789,1749317442619,-151.0,0.000195,2]
[364934791,1749317442630,-249.166087,0.000195,2]
[364934793,1749317442640,-151.0,0.000195,2]
[364934795,1749317442650,-151.0,0.000195,2]
[364934797,1749317442660,-151.0,0.000195,2]
[364934799,1749317442670,-2100.0,0.000195,7]
[364934801,1749317442679,-304.18,0.00019501,2]
[364934803,1749317442688,-305.11,0.00019501,2]
[364934805,1749317442698,-1000.0,0.00019503,2]
[364934807,1749317442707,-150.0,0.00019511,2]
[364934809,1749317442717,-500.0,0.00019515,2]
[364934811,1749317442727,-150.0,0.00019518,2]
[364934813,1749317442737,-151.0,0.00019518,2]
[364934815,1749317442746,-151.0,0.00019518,2]
[364934817,1749317442756,-625.184171,0.00019518,2]
[364934819,1749317442765,-625.184171,0.00019518,2]
[364934821,1749317442775,-150.0,0.00019522,2]
[364934823,1749317442785,-150.0,0.00019524,2]
[364934825,1749317442795,-151.0,0.00019526,2]
[364934827,1749317442805,-294.003019,0.00019526,2]
[364934829,1749317442814,-294.003019,0.00019526,2]
[364934831,1749317442823,-288.422972,0.00019526,2]
[364934833,1749317442833,-288.422972,0.00019526,2]
[364934835,1749317442842,-151.0,0.00019526,2]
[364934837,1749317442852,-233.010461,0.00019528,2]
[364934839,1749317442861,-233.010461,0.00019528,2]
[364934841,1749317442871,-151.0,0.00019528,2]
[364934843,1749317442881,-202.702298,0.00019528,2]
[364934845,1749317442891,-1074.06068,0.00019528,2]
[364934847,1749317442902,-1074.06068,0.00019528,2]
[364934849,1749317442912,-151.0,0.00019528,2]
[364934850,1749317442922,-151.0,0.00019528,2]
[364934851,1749317442931,-151.0,0.00019528,2]
[364934852,1749317442941,-151.0,0.00019528,2]
[364934853,1749317442950,-151.0,0.0001953,2]
[364934854,1749317442960,-151.0,0.0001953,2]
[364934855,1749317442969,-151.0,0.0001953,2]
[364934856,1749317442978,-151.0,0.0001953,2]
[364934857,1749317442988,-151.0,0.0001953,2]
[364934858,1749317442998,-151.0,0.0001953,2]
[364934859,1749317443007,-151.0,0.0001953,2]
[364934860,1749317443016,-185.707612,0.0001953,2]
[364934861,1749317443025,-185.707612,0.0001953,2]
[364934863,1749317443036,-155.516087,0.0001953,2]
[364934865,1749317443046,-398.956507,0.0001953,2]
[364934867,1749317443055,-398.956507,0.0001953,2]
[364934869,1749317443065,-270.751954,0.0001953,2]
[364934871,1749317443075,-270.751954,0.0001953,2]
[364934873,1749317443084,-250.0,0.0001953,2]
[364934875,1749317443093,-250.0,0.0001953,2]
[364934877,1749317443103,-150.0,0.00019531,2]
[364934879,1749317443112,-150.0,0.00019532,2]
[364934881,1749317443122,-150.0,0.00019532,2]
[364934883,1749317443132,-151.0,0.00019534,2]
[364934886,1749317443141,-151.0,0.00019534,2]
[364934888,1749317443151,-151.0,0.00019534,2]
[364934890,1749317443160,-151.0,0.00019534,2]
[364934892,1749317443170,-151.0,0.00019534,2]
[364934894,1749317443179,-151.0,0.00019534,2]
[364934896,1749317443189,-151.0,0.00019534,2]
[364934899,1749317443199,-325.26065,0.00019534,2]
[364934901,1749317443208,-325.26065,0.00019534,2]
[364934903,1749317443218,-152.752099,0.00019534,2]
[364934905,1749317443227,-801.0,0.00019534,2]
[364934907,1749317443236,-636.0,0.00019534,2]
[364934909,1749317443246,-589.0,0.00019534,2]
[364934911,1749317443255,-943.483,0.00019534,2]
[364934913,1749317443265,-1317.862,0.00019534,2]
[364934915,1749317443274,-2000.0,0.00019534,2]
[364934918,1749317443283,-557.0,0.00019534,2]
[364934920,1749317443293,-1255.0,0.00019534,2]
[364934922,1749317443303,-1159.0,0.00019534,2]
[364934924,1749317443312,-4082.0,0.00019534,2]
[364934926,1749317443322,-1177.853,0.00019534,2]
[364934928,1749317443331,-1081.71,0.00019534,2]
[364934930,1749317443340,-388.088847,0.00019535,2]
[364934932,1749317443350,-388.088847,0.00019535,2]
[364934934,1749317443360,-151.0,0.00019535,2]
[364934936,1749317443369,-151.0,0.00019535,2]
[364934938,1749317443378,-173.579297,0.00019535,2]
[364934940,1749317443387,-173.579297,0.00019535,2]
[364934944,1749317443397,-151.0,0.00019535,2]
[364934947,1749317443407,-151.0,0.00019535,2]
[364934949,1749317443416,-151.0,0.00019535,2]
[364934951,1749317443426,-3285.75326761,0.00019535,2]
[364934953,1749317443435,-500.0,0.00019543,2]
[364934955,1749317443444,-150.0,0.00019545,2]
[364934957,1749317443453,-150.0,0.00019547,2]
[364934959,1749317443463,-150.0,0.00019547,2]
[364934961,1749317443473,-150.0,0.00019549,2]
[364934963,1749317443486,-151.0,0.0001955,2]
[364934965,1749317443496,-150.0,0.00019557,2]
[364934967,1749317443506,-150.0,0.00019557,2]
[364934969,1749317443517,-300.0,0.00019557,2]
[364934971,1749317443527,-151.0,0.00019558,2]
[364934973,1749317443537,-151.0,0.00019558,2]
[364934975,1749317443547,-151.0,0.00019558,2]
[364934977,1749317443558,-151.0,0.00019558,2]
[364934979,1749317443569,-259.589776,0.00019558,2]
[364934981,1749317443578,-259.589776,0.00019558,2]
[364934983,1749317443588,-151.0,0.00019558,2]
[364934985,1749317443597,-250.360061,0.00019558,2]
[364934987,1749317443609,-250.360061,0.00019558,2]
[364934989,1749317443618,-188.641033,0.00019558,2]
[364934991,1749317443628,-151.0,0.00019558,2]
[364934993,1749317443637,-246.753444,0.00019558,2]
[364934995,1749317443647,-197.5988,0.00019558,2]
[364934998,1749317443657,-151.0,0.00019558,2]
[364935000,1749317443666,-151.0,0.00019558,2]
[364935002,1749317443675,-383.552512,0.00019558,2]
[364935004,1749317443685,-151.0,0.00019558,2]
[364935006,1749317443694,-383.552512,0.00019558,2]
[364935008,1749317443704,-151.0,0.00019558,2]
[364935010,1749317443713,-151.0,0.00019558,2]
[364935012,1749317443722,-151.0,0.00019558,2]
[364935014,1749317443732,-210.732352,0.00019558,2]
[364935016,1749317443741,-210.732352,0.00019558,2]
[364935018,1749317443751,-160.160776,0.00019558,2]
[364935020,1749317443760,-204.807093,0.00019558,2]
[364935022,1749317443770,-160.160776,0.00019558,2]
[364935024,1749317443779,-151.0,0.00019558,2]
[364935026,1749317443789,-151.0,0.00019558,2]
[364935028,1749317443799,-167.062494,0.00019558,2]
[364935030,1749317443808,-151.0,0.00019558,2]
[364935032,1749317443817,-151.0,0.00019558,2]
[364935034,1749317443827,-151.0,0.00019558,2]
[364935036,1749317443836,-151.0,0.00019558,2]
[364935038,1749317443845,-151.0,0.00019558,2]
[364935040,1749317443855,-151.0,0.00019558,2]
[364935042,1749317443864,-151.0,0.00019558,2]
[364935044,1749317443873,-863.75173,0.00019558,2]
[364935046,1749317443882,-863.75173,0.00019558,2]
[364935048,1749317443891,-863.75173,0.00019558,2]
[364935050,1749317443901,-863.75173,0.00019558,2]
[364935052,1749317443911,-151.0,0.00019558,2]
[364935054,1749317443920,-492.624245,0.00019558,2]
[364935056,1749317443930,-492.624245,0.00019558,2]
[364935058,1749317443939,-151.0,0.00019558,2]
[364935060,1749317443949,-156.101766,0.00019558,2]
[364935062,1749317443958,-156.101766,0.00019558,2]
[364935064,1749317443968,-151.0,0.00019558,2]
[364935066,1749317443977,-156.101766,0.00019558,2]
[364935068,1749317443987,-156.101766,0.00019558,2]
[364935071,1749317443996,-151.0,0.00019558,2]
[364935072,1749317444005,-151.0,0.00019558,2]
[364935074,1749317444014,-151.0,0.00019558,2]
[364935076,1749317444024,-294.003019,0.00019558,2]
[364935078,1749317444033,-294.003019,0.00019558,2]
[364935080,1749317444043,-325.26065,0.00019558,2]
[364935082,1749317444052,-325.26065,0.00019558,2]
[364935084,1749317444062,-280.227671,0.00019558,2]
[364935086,1749317444071,-280.227671,0.00019558,2]
[364935088,1749317444080,-280.227671,0.00019558,2]
[364935090,1749317444089,-280.227671,0.00019558,2]
[364935092,1749317444099,-151.0,0.00019558,2]
[364935094,1749317444108,-1074.06068,0.00019558,2]
[364935096,1749317444118,-151.0,0.00019558,2]
[364935098,1749317444127,-1074.06068,0.00019558,2]
[364935100,1749317444137,-185.707612,0.00019558,2]
[364935102,1749317444146,-185.707612,0.00019558,2]
[364935104,1749317444155,-398.956507,0.00019558,2]
[364935106,1749317444165,-398.956507,0.00019558,2]
[364935108,1749317444174,-151.0,0.00019558,2]
[364935110,1749317444183,-161.109745,0.00019558,2]
[364935112,1749317444194,-151.0,0.00019558,2]
[364935114,1749317444203,-625.184171,0.00019558,2]
[364935116,1749317444212,-625.184171,0.00019558,2]
[364935118,1749317444222,-270.751954,0.00019558,2]
[364935120,1749317444231,-270.751954,0.00019558,2]